bitfinex/quotes_BTCUSD_20241211
["timestamp","ask_amount","ask_price","bid_price","bid_amount"]
[1733914299453,0.023,98342.0,98339.0,0.01152714]
[1733914299675,0.023,98342.0,98339.0,0.00852714]
[1733914301025,0.023,98342.0,98339.0,0.00752714]
[1733914302527,0.023,98342.0,98339.0,0.00952714]
[1733914304142,0.023,98342.0,98339.0,0.00752714]
[1733914304554,0.023,98342.0,98339.0,0.01152714]
[1733914304961,0.023,98342.0,98339.0,0.03286929]
[1733914306146,0.0004,98349.0,98339.0,0.28819453]
[1733914307182,0.0004,98349.0,98339.0,0.28419453]
[1733914307609,0.0004,98349.0,98339.0,0.28519453]
[1733914308008,0.0004,98349.0,98339.0,0.28419453]
[1733914308205,0.0004,98349.0,98339.0,0.28819453]
[1733914308590,0.0004,98349.0,98339.0,0.28419453]
[1733914308981,0.0004,98349.0,98339.0,0.29319453]
[1733914309181,0.0004,98349.0,98339.0,0.28619453]
[1733914310364,0.0004,98349.0,98339.0,0.28419453]
[1733914310566,0.0004,98349.0,98339.0,0.28619453]
[1733914310767,0.0004,98349.0,98339.0,0.29419453]
[1733914311396,0.00678724,98348.0,98339.0,0.29419453]
[1733914311528,0.0004,98349.0,98339.0,0.29219453]
[1733914311725,0.00678724,98348.0,98339.0,0.29219453]
[1733914311952,0.0004,98349.0,98339.0,0.28619453]
[1733914312157,0.00678724,98348.0,98339.0,0.28619453]
[1733914312329,0.0004,98349.0,98339.0,0.29419453]
[1733914312529,0.00432888,98340.0,98339.0,0.29419453]
[1733914312755,8.57e-05,98340.0,98339.0,0.29419453]
[1733914313136,0.00432888,98340.0,98339.0,0.29419453]
[1733914315374,8.57e-05,98340.0,98339.0,0.29419453]
[1733914316394,8.57e-05,98340.0,98339.0,0.44419453]
[1733914316827,8.57e-05,98340.0,98339.0,0.44219453]
[1733914317063,8.57e-05,98340.0,98339.0,0.28419453]
[1733914317210,8.57e-05,98340.0,98339.0,0.43619453]
[1733914317405,8.57e-05,98340.0,98339.0,0.44519453]
[1733914317847,8.57e-05,98340.0,98339.0,0.44319453]
[1733914318082,8.57e-05,98340.0,98339.0,0.52439453]
[1733914324618,8.57e-05,98340.0,98339.0,0.57359453]
[1733914328244,8.57e-05,98340.0,98339.0,0.84627536]
[1733914328446,8.57e-05,98340.0,98339.0,1.1818046]
[1733914330180,7e-07,98340.0,98339.0,1.1818046]
[1733914330400,0.0004,98349.0,98348.0,0.52470115]
[1733914330401,0.000315,98349.0,98348.0,0.52470115]
[1733914330610,0.000315,98349.0,98348.0,0.97304803]
[1733914331428,0.000315,98349.0,98348.0,1.20024252]
[1733914331634,0.000315,98349.0,98348.0,1.20624252]
[1733914331835,0.000315,98349.0,98348.0,1.20024252]
[1733914332279,0.000315,98349.0,98348.0,1.05724252]
[1733914332462,0.000315,98349.0,98348.0,0.48751879]
[1733914332689,0.000315,98349.0,98348.0,0.47309867]
[1733914332882,0.000315,98349.0,98348.0,0.40146203]
[1733914332883,0.081415,98349.0,98348.0,0.40146203]
[1733914333132,0.081415,98349.0,98348.0,0.40246203]
[1733914333318,0.081415,98349.0,98348.0,0.39219355]
[1733914333520,0.081415,98349.0,98348.0,0.39119355]
[1733914333932,0.081415,98349.0,98348.0,0.39319355]
[1733914334134,0.081415,98349.0,98348.0,0.38419355]
[1733914334368,0.081415,98349.0,98348.0,0.38219355]
[1733914334554,0.081415,98349.0,98348.0,0.38819355]
[1733914334760,0.081415,98349.0,98348.0,0.38919355]
[1733914335653,0.08565677,98349.0,98348.0,0.38919355]
[1733914336112,0.104415,98349.0,98348.0,0.38919355]
[1733914337865,0.10865717,98349.0,98348.0,0.38919355]
[1733914338282,0.10865717,98349.0,98348.0,0.0144924]
[1733914338485,0.1154447,98349.0,98348.0,0.0144924]
[1733914339777,0.1154447,98349.0,98348.0,0.007]
[1733914341682,0.1621447,98349.0,98348.0,0.007]
[1733914341884,0.1819398,98349.0,98348.0,0.007]
[1733914342501,0.1819398,98349.0,98348.0,0.006]
[1733914342723,0.203391,98333.0,98330.0,0.0001716]
[1733914342863,0.203394,98331.0,98330.0,0.0001716]
[1733914343065,0.02978753,98331.0,98330.0,0.0001716]
[1733914343635,0.1,98331.0,98330.0,0.00772578]
[1733914343847,0.10678202,98331.0,98330.0,0.0001716]
[1733914344713,0.31017602,98331.0,98330.0,0.0001716]
[1733914344916,0.31441478,98331.0,98330.0,0.00772578]
[1733914345112,0.31441478,98331.0,98330.0,0.0001716]
[1733914346373,0.11102078,98331.0,98330.0,0.0011716]
[1733914346796,0.11101357,98331.0,98330.0,0.0011716]
[1733914347148,0.10423876,98331.0,98330.0,0.0011716]
[1733914347339,0.10423876,98331.0,98330.0,0.00874009]
[1733914347623,0.10423876,98331.0,98330.0,0.0011716]
[1733914348276,0.10423876,98331.0,98330.0,0.2045676]
[1733914348537,0.1,98331.0,98330.0,0.2045676]
[1733914348789,0.1,98331.0,98330.0,0.21213609]
[1733914349260,0.1,98331.0,98330.0,0.21113609]
[1733914349389,0.1,98331.0,98330.0,0.21213609]
[1733914354851,0.303394,98331.0,98330.0,0.00874009]
[1733914355059,0.303394,98331.0,98330.0,0.0011716]
[1733914355292,0.314396,98331.0,98330.0,0.0011716]
[1733914355497,0.32199133,98331.0,98330.0,0.0011716]
[1733914356078,0.32835163,98331.0,98330.0,0.0011716]
[1733914356292,0.32835163,98331.0,98330.0,0.0001716]
[1733914357255,0.33335163,98331.0,98330.0,0.0011716]
[1733914357612,0.33335163,98331.0,98330.0,0.00095336]
[1733914358151,0.34039518,98331.0,98330.0,0.00095336]
[1733914358396,0.5813964,98331.0,98330.0,0.00095336]
[1733914358591,0.57434962,98331.0,98330.0,0.00095336]
[1733914359417,0.56675752,98331.0,98330.0,0.00095336]
[1733914359587,0.55973939,98331.0,98330.0,0.00095336]
[1733914360013,0.54237709,98331.0,98330.0,0.00095336]
[1733914360681,0.33207285,98321.0,98320.0,0.0001716]
[1733914360901,0.58949809,98321.0,98320.0,0.0001716]
[1733914362382,0.46484024,98321.0,98320.0,0.0001716]
[1733914362592,0.36587698,98321.0,98320.0,0.0001716]
[1733914362761,0.359515,98321.0,98320.0,0.0001716]
[1733914363594,0.61841537,98321.0,98320.0,0.0001716]
[1733914363773,0.63057182,98321.0,98320.0,0.0001716]
[1733914364021,0.62421023,98321.0,98320.0,0.0001716]
[1733914364225,0.49555238,98321.0,98320.0,0.0001716]
[1733914364399,0.37807069,98321.0,98320.0,0.0001716]
[1733914365856,0.37806278,98321.0,98320.0,0.0001716]
[1733914366075,0.36625546,98321.0,98320.0,0.0001716]
[1733914366264,0.38480324,98321.0,98320.0,0.0001716]
[1733914367116,0.37806278,98321.0,98320.0,0.0001716]
[1733914368837,0.59349809,98321.0,98320.0,0.0001716]
[1733914369044,0.62420987,98321.0,98320.0,0.0001716]
[1733914369462,0.64320543,98321.0,98320.0,0.0001716]
[1733914369673,0.72717817,98321.0,98320.0,0.0001716]
[1733914369881,0.64320543,98321.0,98320.0,0.0001716]
[1733914371844,0.64321027,98321.0,98320.0,0.0001716]
[1733914372051,0.63921027,98321.0,98320.0,0.0001716]
[1733914372255,0.203456,98301.0,98300.0,0.0001714]
[1733914372454,0.24517896,98301.0,98300.0,0.0001714]
[1733914373072,0.36737896,98301.0,98300.0,0.0001714]
[1733914373488,0.37037896,98301.0,98300.0,0.0001714]
[1733914374099,0.37237896,98301.0,98300.0,0.0001714]
[1733914374742,0.36477975,98301.0,98300.0,0.0001714]
[1733914374978,0.37237583,98301.0,98300.0,0.0001714]
[1733914375189,0.37873836,98301.0,98300.0,0.0001714]
[1733914375807,0.3787342,98301.0,98300.0,0.0001714]
[1733914376854,0.37873161,98301.0,98300.0,0.0001714]
[1733914377470,0.38575207,98301.0,98300.0,0.0001714]
[1733914377674,0.37872923,98301.0,98300.0,0.0001714]
[1733914377877,0.37199006,98301.0,98300.0,0.0001714]
[1733914378081,0.3857492,98301.0,98300.0,0.0001714]
[1733914378286,0.39276917,98301.0,98300.0,0.0001714]
[1733914378497,0.3857492,98301.0,98300.0,0.0001714]
[1733914380154,0.69273367,98301.0,98300.0,0.0001714]
[1733914380357,0.65087937,98301.0,98300.0,0.0001714]
[1733914380770,0.41689628,98301.0,98300.0,0.0001714]
[1733914380974,0.40474152,98301.0,98300.0,0.0001714]
[1733914381177,0.203477,98291.0,98280.0,0.0001714]
[1733914381368,0.02772011,98290.0,98280.0,0.0001714]
[1733914381536,0.05072011,98289.0,98281.0,0.00668043]
[1733914381736,0.023,98287.0,98281.0,0.00668043]
[1733914381940,0.023,98285.0,98281.0,0.00668043]
[1733914382140,0.023,98282.0,98280.0,0.0001714]
[1733914382373,0.03357451,98281.0,98280.0,0.0001714]
[1733914382616,0.04031368,98281.0,98280.0,0.0001714]
[1733914383468,0.04792032,98281.0,98280.0,0.0001714]
[1733914383853,0.05494426,98281.0,98280.0,0.0001714]
[1733914384228,0.04892032,98281.0,98280.0,0.0001714]
[1733914385103,0.04131368,98281.0,98280.0,0.02151355]
[1733914385310,0.04131368,98281.0,98280.0,0.02822112]
[1733914385631,0.01831368,98281.0,98280.0,0.02822112]
[1733914385968,0.01195115,98281.0,98280.0,0.10932112]
[1733914386405,0.01095115,98281.0,98280.0,0.10932112]
[1733914386820,0.03495115,98281.0,98280.0,0.10932112]
[1733914387048,0.02821198,98281.0,98280.0,0.10932112]
[1733914387271,0.02821198,98281.0,98280.0,0.21464636]
[1733914387490,0.02721198,98281.0,98280.0,0.36464636]
[1733914387698,0.02721198,98281.0,98280.0,0.36664636]
[1733914388078,0.023,98281.0,98280.0,0.36664636]
[1733914389336,0.023,98281.0,98280.0,0.37164636]
[1733914389790,0.023,98281.0,98280.0,0.36664636]
[1733914390080,0.024,98281.0,98280.0,0.37264636]
[1733914396394,0.001,98281.0,98280.0,0.37264636]
[1733914400838,0.001,98281.0,98280.0,0.29154636]
[1733914401051,0.001,98281.0,98280.0,0.38259983]
[1733914401419,0.001,98281.0,98280.0,0.29154636]
[1733914402528,0.001,98281.0,98280.0,0.428005]
[1733914402705,0.001,98281.0,98280.0,0.29154636]
[1733914402902,0.001,98281.0,98280.0,0.42817078]
[1733914403651,0.001,98281.0,98280.0,0.40682863]
[1733914403860,0.001,98281.0,98280.0,0.16487897]
[1733914404577,0.001,98281.0,98280.0,0.18622112]
[1733914405050,0.001,98281.0,98280.0,0.16487897]
[1733914405231,0.001,98281.0,98280.0,0.18622112]
[1733914405493,0.001,98281.0,98280.0,0.16487897]
[1733914405904,0.001,98281.0,98280.0,0.32284554]
[1733914409236,0.001,98281.0,98280.0,0.85438567]
[1733914409432,0.001,98281.0,98280.0,0.90028567]
[1733914409880,0.046,98315.0,98298.0,0.203462]
[1733914409881,0.00419342,98299.0,98298.0,0.203462]
[1733914410055,0.00419342,98299.0,98298.0,0.53538724]
[1733914410271,0.00419342,98299.0,98298.0,0.54204496]
[1733914410481,0.00670958,98312.0,98299.0,0.15]
[1733914410714,0.00670958,98311.0,98299.0,0.34636015]
[1733914410996,0.0757,98316.0,98299.0,0.35302055]
[1733914411250,0.00761541,98315.0,98299.0,0.26198564]
[1733914411537,0.0757,98316.0,98299.0,0.26198564]
[1733914411797,0.01432268,98315.0,98299.0,0.26198564]
[1733914412055,0.0757,98316.0,98299.0,0.26198564]
[1733914412322,0.00670738,98314.0,98299.0,0.41198564]
[1733914412570,0.0757,98316.0,98299.0,0.92993605]
[1733914412571,0.00670738,98315.0,98299.0,0.92993605]
[1733914412825,0.0757,98316.0,98299.0,0.93093605]
[1733914413117,0.00761393,98323.0,98299.0,0.77424268]
[1733914413373,0.00419218,98322.0,98299.0,0.82104268]
[1733914413624,0.00419218,98321.0,98299.0,0.82104268]
[1733914413858,0.00419218,98320.0,98299.0,0.82104268]
[1733914414057,0.00419218,98319.0,98299.0,0.84092487]
[1733914414307,0.00419218,98318.0,98299.0,0.84092487]
[1733914414527,0.046,98325.0,98299.0,0.84092487]
[1733914414726,0.00419088,98324.0,98299.0,0.85133973]
[1733914415132,0.00419088,98323.0,98299.0,0.85133973]
[1733914415360,0.046,98325.0,98299.0,0.85133973]
[1733914415361,0.00419088,98322.0,98299.0,0.51542484]
[1733914415563,0.00419088,98321.0,98299.0,1.07809913]
[1733914415771,0.00419088,98320.0,98299.0,1.07809913]
[1733914415970,0.046,98325.0,98299.0,1.07809913]
[1733914416174,0.00419011,98324.0,98299.0,0.85089942]
[1733914416375,0.00419011,98324.0,98299.0,0.78421723]
[1733914416723,0.00419011,98323.0,98299.0,0.78421723]
[1733914416923,0.00419011,98322.0,98299.0,0.78421723]
[1733914417128,0.00419011,98321.0,98299.0,0.78421723]
[1733914417332,0.046,98325.0,98299.0,0.96580359]
[1733914417536,0.00418865,98324.0,98299.0,0.96580359]
[1733914417757,0.046,98325.0,98299.0,0.44874265]
[1733914417974,0.00418865,98323.0,98299.0,0.96572331]
[1733914418182,0.00418865,98324.0,98299.0,0.96572331]
[1733914418393,0.0825,98305.0,98299.0,0.78405269]
[1733914418601,0.0825,98311.0,98299.0,0.44874265]
[1733914418805,0.0825,98311.0,98299.0,0.29874265]
[1733914419031,0.0825,98311.0,98299.0,0.44874265]
[1733914419210,0.0825,98311.0,98299.0,0.4274005]
[1733914419350,0.0825,98311.0,98299.0,0.44874265]
[1733914420344,0.0824,98319.0,98299.0,0.44874265]
[1733914421127,0.00670066,98318.0,98299.0,0.44874265]
[1733914421332,0.00670066,98317.0,98299.0,0.44874265]
[1733914421543,0.00670066,98316.0,98299.0,0.44874265]
[1733914422185,0.0824,98319.0,98299.0,0.44208225]
[1733914422527,0.00670078,98318.0,98299.0,0.44208225]
[1733914422648,0.00670078,98317.0,98299.0,0.44208225]
[1733914422849,0.00670078,98316.0,98299.0,0.44208225]
[1733914423049,0.0824,98319.0,98299.0,0.44208225]
[1733914423279,0.00670053,98318.0,98299.0,0.44208225]
[1733914423497,0.00670053,98317.0,98299.0,0.44208225]
[1733914423702,0.00418783,98318.0,98299.0,0.44208225]
[1733914424694,0.0108881,98317.0,98299.0,0.44208225]
[1733914425302,0.00418773,98316.0,98299.0,0.44208225]
[1733914425504,0.0108881,98317.0,98299.0,0.44208225]
[1733914426306,0.0108881,98317.0,98299.0,0.29208225]
[1733914426718,0.069,98302.0,98299.0,0.005]
[1733914428257,0.069,98302.0,98299.0,0.001]
[1733914428891,0.069,98302.0,98296.0,0.203466]
[1733914429096,0.069,98302.0,98299.0,0.004]
[1733914429710,0.069,98302.0,98299.0,0.005]
[1733914430156,0.069,98302.0,98299.0,0.004]
[1733914430360,0.069,98302.0,98296.0,0.203466]
[1733914430568,0.069,98302.0,98299.0,0.001]
[1733914430974,0.069,98302.0,98296.0,0.203466]
[1733914431180,0.069,98302.0,98299.0,0.001]
[1733914432422,0.2035439,98300.0,98299.0,0.001]
[1733914432631,0.2077325,98300.0,98299.0,0.001]
[1733914432835,0.2307325,98300.0,98299.0,0.001]
[1733914433455,0.23743445,98300.0,98284.0,0.01021139]
[1733914433611,0.0271886,98299.0,98286.0,0.203486]
[1733914433807,0.023,98297.0,98286.0,0.203486]
[1733914434007,0.023,98295.0,98288.0,0.203483]
[1733914434208,0.023,98293.0,98288.0,0.203483]
[1733914434415,0.023,98291.0,98289.0,0.00665953]
[1733914434613,0.0271886,98290.0,98289.0,0.00665953]
[1733914436829,0.0271886,98290.0,98289.0,0.002]
[1733914437014,0.0271886,98290.0,98289.0,0.00665953]
[1733914437167,0.023,98289.0,98287.0,0.406969]
[1733914437346,0.0271886,98288.0,98287.0,0.406969]
[1733914437836,0.023,98288.0,98287.0,0.406969]
[1733914437961,0.02718907,98288.0,98287.0,0.406969]
[1733914438366,0.02718907,98288.0,98287.0,0.206484]
[1733914439636,0.02970237,98297.0,98287.0,0.207484]
[1733914439839,0.023,98295.0,98291.0,0.203475]
[1733914440048,0.00418877,98294.0,98288.0,0.203483]
[1733914440256,0.02718877,98293.0,98288.0,0.203483]
[1733914440484,0.00418877,98292.0,98288.0,0.203483]
[1733914440691,0.023,98291.0,98288.0,0.203483]
[1733914441113,0.023,98298.0,98288.0,0.203483]
[1733914441334,0.0108901,98297.0,98292.0,0.203474]
[1733914441549,0.0041885,98296.0,98292.0,0.203474]
[1733914441815,0.0271885,98295.0,98292.0,0.203474]
[1733914441998,0.0041885,98294.0,98292.0,0.203474]
[1733914442211,0.023,98293.0,98292.0,0.203474]
[1733914442629,0.0271885,98293.0,98292.0,0.203474]
[1733914443650,0.0271885,98293.0,98292.0,0.204474]
[1733914447458,0.0271885,98293.0,98292.0,0.21114264]
[1733914447674,0.023,98301.0,98292.0,0.21114264]
[1733914447876,0.00670712,98300.0,98292.0,0.21114264]
[1733914448088,0.00670712,98299.0,98292.0,0.00821999]
[1733914448285,0.00670712,98298.0,98296.0,0.203466]
[1733914448490,0.203437,98311.0,98300.0,0.203457]
[1733914448818,0.00670957,98310.0,98300.0,0.203457]
[1733914449294,0.203429,98315.0,98300.0,0.406915]
[1733914449765,0.00670958,98309.0,98300.0,0.406915]
[1733914449997,0.023,98308.0,98300.0,0.406915]
[1733914450242,0.023,98306.0,98300.0,0.406915]
[1733914450485,0.002,98301.0,98300.0,0.203457]
[1733914450886,0.002,98301.0,98294.0,0.406942]
[1733914450911,0.004,98301.0,98294.0,0.406942]
[1733914451153,0.002,98301.0,98294.0,0.406942]
[1733914451383,0.002,98301.0,98296.0,0.203467]
[1733914451811,0.002,98301.0,98298.0,0.203462]
[1733914452032,0.001,98301.0,98298.0,0.203462]
[1733914453211,0.0988,98306.0,98298.0,0.203462]
[1733914453466,0.00666863,98305.0,98298.0,0.203462]
[1733914453660,0.001,98301.0,98298.0,0.203462]
[1733914453855,0.00666863,98300.0,98294.0,0.203471]
[1733914454062,0.00666863,98299.0,98294.0,0.406942]
[1733914454271,0.0988,98306.0,98296.0,0.203467]
[1733914454468,0.1008,98306.0,98296.0,0.203467]
[1733914454674,0.0066687,98305.0,98298.0,0.203462]
[1733914455080,0.0066687,98304.0,98298.0,0.203462]
[1733914455232,0.001,98299.0,98296.0,0.203467]
[1733914455660,0.001,98299.0,98297.0,0.00665781]
[1733914456209,0.001,98299.0,98294.0,0.406941]
[1733914456320,0.001,98299.0,98297.0,0.00665781]
[1733914456525,0.001,98299.0,98294.0,0.406941]
[1733914456722,0.001,98299.0,98297.0,0.00665781]
[1733914456927,0.002,98305.0,98294.0,0.406941]
[1733914457142,0.00666885,98304.0,98298.0,0.203461]
[1733914457343,0.00666885,98303.0,98298.0,0.203461]
[1733914457569,0.002,98305.0,98298.0,0.203461]
[1733914457765,0.00666893,98302.0,98298.0,0.203461]
[1733914458447,0.0988,98306.0,98298.0,0.203461]
[1733914458448,0.00666893,98301.0,98298.0,0.203461]
[1733914458658,0.00666893,98300.0,98298.0,0.203461]
[1733914458854,0.00666893,98299.0,98298.0,0.203461]
[1733914459732,0.01083711,98299.0,98298.0,0.203461]
[1733914459880,0.01083711,98299.0,98295.0,0.203469]
[1733914459881,0.01846398,98299.0,98295.0,0.203469]
[1733914460092,0.002,98305.0,98296.0,0.00665998]
[1733914460093,0.01083711,98298.0,98296.0,0.00665998]
[1733914460292,0.001,98302.0,98296.0,0.00665998]
[1733914460293,0.01083711,98297.0,98296.0,0.00665998]
[1733914461394,0.01846529,98297.0,98292.0,0.00055135]
[1733914461605,0.01220414,98301.0,98296.0,0.001]
[1733914461802,0.05367165,98300.0,98296.0,0.001]
[1733914462007,0.023,98298.0,98296.0,0.001]
[1733914462243,0.01179736,98297.0,98296.0,0.001]
[1733914462594,0.01846751,98297.0,98296.0,0.0076625]
[1733914462794,0.01846751,98297.0,98296.0,0.001]
[1733914462994,0.01846751,98297.0,98296.0,0.0066625]
[1733914463163,0.01846751,98297.0,98292.0,0.00055135]
[1733914463349,0.01220572,98304.0,98296.0,0.0076625]
[1733914463551,0.01083916,98303.0,98296.0,0.001]
[1733914463752,0.001,98301.0,98297.0,0.21012533]
[1733914463954,0.01179707,98300.0,98297.0,0.21012533]
[1733914464133,0.001,98301.0,98297.0,0.21012533]
[1733914464134,0.01179707,98299.0,98297.0,0.21012533]
[1733914464331,0.001,98301.0,98297.0,0.21012533]
[1733914464332,0.01083916,98298.0,98297.0,0.21012533]
[1733914466610,0.002,98304.0,98303.0,0.203452]
[1733914467038,0.01283937,98304.0,98303.0,0.203452]
[1733914467242,0.00416899,98304.0,98303.0,0.203452]
[1733914467864,0.00416899,98304.0,98303.0,0.503452]
[1733914468094,0.00516899,98304.0,98303.0,0.503452]
[1733914468308,0.00616899,98304.0,98303.0,0.503452]
[1733914468933,0.00516899,98304.0,98303.0,0.503452]
[1733914469854,0.00416899,98304.0,98303.0,0.503452]
[1733914470688,0.00416899,98304.0,98303.0,0.505452]
[1733914470893,0.00416899,98304.0,98303.0,0.504452]
[1733914471293,0.00416899,98304.0,98303.0,0.507452]
[1733914472361,8.58e-05,98320.0,98304.0,0.15]
[1733914472571,8.58e-05,98320.0,98309.0,0.20344]
[1733914473048,0.00425134,98310.0,98309.0,0.20344]
[1733914473913,0.00425134,98310.0,98309.0,0.20444]
[1733914474110,0.00525134,98310.0,98309.0,0.20444]
[1733914474523,0.00425134,98310.0,98309.0,0.20444]
[1733914474926,0.00525134,98310.0,98309.0,0.20444]
[1733914475485,0.00525134,98310.0,98309.0,0.30658215]
[1733914475688,0.0010859,98310.0,98309.0,0.30658215]
[1733914475897,0.00525076,98310.0,98309.0,0.30658215]
[1733914477469,0.00525076,98310.0,98309.0,0.31666097]
[1733914477793,0.00525066,98310.0,98309.0,0.31666097]
[1733914478488,0.00525069,98310.0,98309.0,0.31666097]
[1733914481759,0.00525069,98310.0,98309.0,0.23586097]
[1733914482681,0.00525069,98310.0,98309.0,0.22578215]
[1733914483036,0.00525069,98310.0,98309.0,0.20444]
[1733914483247,0.00525069,98310.0,98309.0,0.001]
[1733914487425,0.00941492,98310.0,98309.0,0.001]
[1733914487653,0.00525013,98310.0,98309.0,0.001]
[1733914490496,0.0010859,98310.0,98309.0,0.001]
[1733914492182,0.00525097,98310.0,98309.0,0.001]
[1733914492837,0.00941688,98310.0,98309.0,0.001]
[1733914493263,0.00525097,98310.0,98309.0,0.001]
[1733914494572,0.00941876,98310.0,98309.0,0.001]
[1733914494770,0.00525369,98310.0,98309.0,0.001]
[1733914495463,0.01092393,98310.0,98309.0,0.001]
[1733914495888,0.01192393,98310.0,98306.0,0.2318]
[1733914496097,0.00416779,98309.0,98306.0,0.25314215]
[1733914496324,0.00416779,98308.0,98306.0,0.25314215]
[1733914496529,0.00416779,98307.0,98306.0,0.25314215]
[1733914496741,0.0010859,98310.0,98306.0,0.25314215]
[1733914496946,8.59e-05,98310.0,98308.0,0.09112014]
[1733914497124,0.0010859,98310.0,98308.0,0.09112014]
[1733914497572,0.0010859,98310.0,98308.0,0.11246229]
[1733914498197,0.0010859,98310.0,98308.0,0.11245419]
[1733914498615,8.59e-05,98310.0,98308.0,0.11245419]
[1733914498821,0.0010859,98310.0,98308.0,0.11245419]
[1733914499766,0.0020859,98310.0,98308.0,0.11245419]
[1733914499958,8.59e-05,98310.0,98308.0,0.11245419]
[1733914500170,0.0020859,98310.0,98308.0,0.11245419]
[1733914500897,0.0020859,98310.0,98308.0,0.11244336]
[1733914502182,0.0010859,98310.0,98308.0,0.11244336]
[1733914503167,8.59e-05,98310.0,98308.0,0.11244336]
[1733914503415,8.59e-05,98310.0,98309.0,0.42666739]
[1733914504093,8.59e-05,98310.0,98309.0,0.56325482]
[1733914504300,8.59e-05,98310.0,98309.0,0.61023715]
[1733914504508,8.59e-05,98310.0,98309.0,0.83788287]
[1733914505761,8.59e-05,98310.0,98309.0,0.83988287]
[1733914505913,8.59e-05,98310.0,98309.0,0.28366739]
[1733914506117,8.59e-05,98310.0,98309.0,0.27666739]
[1733914506518,8.59e-05,98310.0,98309.0,0.28166739]
[1733914506742,0.0489097,98330.0,98309.0,0.27666739]
[1733914507077,0.02711225,98329.0,98320.0,0.07828953]
[1733914507734,0.023,98329.0,98320.0,0.07828953]
[1733914509190,0.0509097,98330.0,98324.0,0.02134215]
[1733914509398,0.003,98329.0,98324.0,0.02134215]
[1733914509600,0.005,98329.0,98324.0,0.02134215]
[1733914510034,0.00411054,98328.0,98324.0,0.02134215]
[1733914510219,0.0489097,98330.0,98324.0,0.02134215]
[1733914510424,0.05097131,98330.0,98324.0,0.02134215]
[1733914510626,0.003,98329.0,98324.0,0.02134215]
[1733914512350,0.04897131,98330.0,98324.0,0.02134215]
[1733914512577,0.002,98328.0,98324.0,0.02134215]
[1733914512798,0.002,98328.0,98325.0,0.203407]
[1733914512997,0.04897131,98330.0,98325.0,0.203407]
[1733914513407,0.002,98329.0,98324.0,0.02134215]
[1733914513797,0.00410964,98328.0,98324.0,0.02134215]
[1733914514007,0.002,98329.0,98324.0,0.02134215]
[1733914514215,0.00410963,98328.0,98324.0,0.02134215]
[1733914514423,0.00410963,98327.0,98324.0,0.02134215]
[1733914514629,0.00410963,98326.0,98324.0,0.02134215]
[1733914514838,0.002,98329.0,98324.0,0.02134215]
[1733914515040,0.00410986,98328.0,98324.0,0.02134215]
[1733914515278,0.00410986,98327.0,98324.0,0.02134215]
[1733914515485,0.00410986,98327.0,98325.0,0.203407]
[1733914515689,0.05097131,98330.0,98325.0,0.203407]
[1733914515903,0.04897131,98330.0,98325.0,0.203407]
[1733914516117,0.002,98329.0,98325.0,0.203407]
[1733914516588,0.00411035,98328.0,98325.0,0.203407]
[1733914516797,0.00411035,98327.0,98325.0,0.203407]
[1733914517009,0.05397131,98330.0,98324.0,0.02134215]
[1733914517230,0.05397131,98330.0,98320.0,0.21340643]
[1733914517231,0.20750895,98329.0,98320.0,0.00999043]
[1733914517433,0.20950895,98329.0,98320.0,0.00999043]
[1733914517654,0.00411095,98328.0,98317.0,0.15]
[1733914518145,0.203404,98326.0,98317.0,0.15]
[1733914518546,0.00411095,98325.0,98317.0,0.15]
[1733914518735,0.00411095,98324.0,98317.0,0.15]
[1733914519198,0.00411095,98323.0,98317.0,0.16020262]
[1733914519400,0.00411095,98322.0,98317.0,0.16020262]
[1733914519755,0.00411095,98321.0,98317.0,0.16020262]
[1733914519956,0.203407,98325.0,98317.0,0.16020262]
[1733914520159,0.00511275,98324.0,98317.0,0.16020262]
[1733914520512,0.00411275,98323.0,98317.0,0.16020262]
[1733914520642,0.00411275,98322.0,98317.0,0.16020262]
[1733914520845,0.00411275,98321.0,98317.0,0.16020262]
[1733914521092,0.00411275,98320.0,98318.0,0.203421]
[1733914521505,0.203398,98329.0,98318.0,0.203421]
[1733914521677,0.01069398,98328.0,98318.0,0.203421]
[1733914521882,0.01069398,98327.0,98318.0,0.203421]
[1733914522108,0.20751707,98326.0,98317.0,0.16020262]
[1733914522481,0.00411307,98325.0,98317.0,0.16020262]
[1733914522658,0.00411307,98324.0,98317.0,0.16020262]
[1733914522870,0.00411307,98323.0,98317.0,0.16020262]
[1733914523084,0.00411307,98322.0,98317.0,0.16020262]
[1733914523286,0.203404,98326.0,98317.0,0.16020262]
[1733914523287,0.00411307,98321.0,98317.0,0.16020262]
[1733914523486,0.00411335,98320.0,98317.0,0.16020262]
[1733914523746,0.204404,98326.0,98317.0,0.16020262]
[1733914524055,0.00411335,98325.0,98317.0,0.16020262]
[1733914524265,0.204404,98326.0,98317.0,0.16020262]
[1733914524469,0.00411335,98324.0,98317.0,0.16020262]
[1733914524671,0.00411335,98324.0,98317.0,0.16120262]
[1733914524872,0.00411335,98323.0,98317.0,0.16120262]
[1733914525082,0.00411335,98322.0,98317.0,0.16120262]
[1733914525281,0.00411335,98321.0,98317.0,0.16120262]
[1733914525481,0.00411335,98320.0,98317.0,0.16020262]
[1733914525693,0.203407,98325.0,98317.0,0.15]
[1733914525908,0.203407,98325.0,98311.0,0.15]
[1733914525909,0.09149883,98324.0,98311.0,0.15]
[1733914526117,0.023,98323.0,98311.0,0.15]
[1733914526326,0.203425,98316.0,98311.0,0.15]
[1733914526807,0.203413,98322.0,98311.0,0.15]
[1733914526808,0.00411581,98315.0,98311.0,0.15]
[1733914527009,0.00411581,98314.0,98311.0,0.15]
[1733914527220,0.00411581,98313.0,98311.0,0.15]
[1733914527422,0.01070111,98313.0,98311.0,0.153]
[1733914527623,0.00411581,98312.0,98311.0,0.153]
[1733914527826,0.00411581,98312.0,98311.0,0.15]
[1733914528029,0.00411581,98312.0,98311.0,0.001]
[1733914528454,0.00411581,98312.0,98310.0,0.0001716]
[1733914528658,0.20343,98314.0,98310.0,0.0001716]
[1733914528659,0.00411581,98311.0,98310.0,0.0001716]
[1733914531409,0.00511581,98311.0,98310.0,0.0001716]
[1733914532034,0.00411581,98311.0,98310.0,0.0001716]
[1733914532239,0.01169482,98311.0,98310.0,0.0001716]
[1733914532870,0.01069482,98311.0,98310.0,0.0001716]
[1733914533076,0.01169482,98311.0,98310.0,0.0001716]
[1733914533280,0.00511581,98311.0,98310.0,0.0001716]
[1733914533487,0.00611581,98311.0,98310.0,0.0001716]